Cogmind - Beta 10.2 @@@ ROGUE MODE // 2020.11.05 @ 22:04:59 // Halloween2020/ForbiddenLore Player: Demise Result: Destroyed by S-27 Virus with Autogun Performance ------------- Evolutions (5) 2500 Regions Visited (16) 3200 Robots Destroyed (175) 875 Value Destroyed (5922) 5922 Prototype IDs (44) 880 Alien Tech Used (1) 200 Bonus (2055) 2055 TOTAL SCORE: 15632 Bonus ------- High Alert Combat Kills 650 Follower Combat Kills 228 Entered Garrisons 200 Used RIF Installer 500 Aligned with FarCom 300 Met Zhirov 300 Friendly Fire -123 Cogmind --------- Core Integrity 0/1000 Matter 300/300 Energy 99/100 System Corruption 2% Temperature Cool (0) Movement Core (50) Location -4/Proximity Caves Parts ------- > --- POWER (2) -------- (None) > --- PROPULSION (6) --- (None) > --- UTILITY (7) ------ (None) > --- WEAPON (2) ------- (None) > --- INVENTORY (4) ---- Integrated Reactor Autogun Phasing Sabre Peak State ------------ > --- POWER ------------ Makeshift Power Source Makeshift Power Source > --- PROPULSION ------- Makeshift Hover Unit Makeshift Hover Unit VTOL Module > --- UTILITY ---------- High-capacity Storage Unit High-capacity Storage Unit Lightpack 2.0 Advanced Sensor Array Improved Signal Interpreter Relay Coupler [Swarmer] > --- WEAPON ----------- Remote Datajack Axe > --- INVENTORY -------- Makeshift Power Source Improved Heat Sink High-capacity Storage Unit High-capacity Matter Pod Improved Signal Interpreter Advanced Terrain Scanner Makeshift Terrain Scan Processor Modified TNC Makeshift Salvage Targeting Computer Advanced Transmission Jammer Improved Light Armor Plating Makeshift Armor Plating EX Chip 1 EX Chip 1 Hacking Suite Hacking Suite Hacking Suite EX Chip 2 EX Chip 2 System Shield Relay Coupler [NC] Relay Coupler [Sentry] Advanced Component Analysis Suite System Purifier Advanced Recalibrator Thief Drone Bay Supersonic Drone Bay Gauss Rifle Gauss Rifle Gauss Rifle Mini Assault Cannon Great Maul Deploy-a-Sentry [Rating: 70] Favorites ----------- Power Cooled Ion Engine Engine Cooled Ion Engine Power Core Fission Core Propulsion Light Treads Treads Light Treads Leg Flexi-carbon Leg Wheel Armored Wheel Hover Unit Makeshift Hover Unit Flight Unit VTOL Module Utility High-capacity Storage Unit Device Advanced Sensor Array Storage High-capacity Storage Unit Processor Salvage Targeting Computer Hackware EX Chip 1 Protection Improved Light Armor Plating Weapon Improved Light Cannon Energy Gun EM Pulse Gun Energy Cannon Beam Cannon Ballistic Gun Enhanced Autogun Ballistic Cannon Improved Light Cannon Special Weapon Remote Datajack Impact Weapon Heavy Hammer Slashing Weapon Master Tearclaws Piercing Weapon Makeshift Spear Build | -11 -10 -10 -9 -9 -9 -8 -8 -8 -8 -7 -6 -5 -5 -5 -5 -4 ------- Run | Scr Mat Min Mat Min Exi Min Mat Gar Mat Fac Fac Fac Upp Upp Zhi Pro Slots Evolved 10 | . . . 2 . . . 2 . . 2 2 2 . . . . Power 1 | . . . . . . . . . . . 1 . . . . . Propulsion 4 | . . . . . . . . . . 1 1 2 . . . . Utility 5 | . . . 2 . . . 2 . . 1 . . . . . . Weapon . | . . . . . . . . . . . . . . . . . Parts Attached 218 | 2 16 6 16 8 22 . 16 27 16 34 9 8 11 2 11 14 Power 26 | . 2 1 1 . 4 . . 2 1 2 3 1 2 . 3 4 Engine 19 | . 2 . 1 . 3 . . 2 1 2 3 . . . 3 2 Core 7 | . . 1 . . 1 . . . . . . 1 2 . . 2 Reactor . | . . . . . . . . . . . . . . . . . Propulsion 39 | 2 3 1 1 . 3 . 2 2 5 9 1 1 3 . 2 4 Treads 21 | 2 3 1 1 . 1 . . 2 3 6 . . 2 . . . Leg 5 | . . . . . . . . . . 1 . . 1 . . 3 Wheel 5 | . . . . . 2 . 2 . . . . . . . 1 . Hover 4 | . . . . . . . . . . 2 . 1 . . 1 . Flight 4 | . . . . . . . . . 2 . 1 . . . . 1 Utility 71 | . 4 . 5 4 5 . 6 15 4 11 3 3 5 . 5 1 Device 14 | . . . 1 . . . . 3 . 5 1 1 . . 2 1 Storage 24 | . 4 . 2 . 4 . . 6 2 . . . 4 . 2 . Processor 6 | . . . . 2 1 . . 1 . . 1 1 . . . . Hackware 8 | . . . 1 . . . . . 2 1 1 1 1 . 1 . Protection 19 | . . . 1 2 . . 6 5 . 5 . . . . . . Artifact . | . . . . . . . . . . . . . . . . . Weapon 82 | . 7 4 9 4 10 . 8 8 6 12 2 3 1 2 1 5 Energy Gun 4 | . 1 . 2 . . . . 1 . . . . . . . . Energy Cannon 2 | . 1 . . . . . . . . . . 1 . . . . Ballistic Gun 31 | . 1 2 . . . . 5 6 4 7 . 1 1 2 . 2 Ballistic Cannon 24 | . 3 2 5 3 7 . 2 . . 2 . . . . . . Launcher . | . . . . . . . . . . . . . . . . . Special Weapon 9 | . 1 . 2 1 3 . 1 . . 1 . . . . . . Impact Weapon 3 | . . . . . . . . . . 1 1 1 . . . . Slashing Weapon 5 | . . . . . . . . . . . 1 . . . 1 3 Piercing Weapon 4 | . . . . . . . . 1 2 1 . . . . . . Special Melee Weapon . | . . . . . . . . . . . . . . . . . Unidentified Prototypes 11 | . . . 4 . . . 1 1 . 2 . . . . 2 1 Parts Lost 60 | . 2 . . 1 3 . 5 3 3 12 4 4 6 1 . 16 Power 12 | . . . . . 1 . . 1 . 2 2 1 . . . 5 Propulsion 18 | . . . . . 2 . . . 2 5 1 . 3 . . 5 Utility 15 | . . . . . . . 2 . 1 3 . 1 3 1 . 4 Weapon 15 | . 2 . . 1 . . 3 2 . 2 1 2 . . . 2 Highest Loss Streak 10 | . 1 . . 1 1 . 3 1 2 6 4 2 5 1 . 10 Average Slot Usage (%) 85 | . 98 99 100 100 86 77 77 91 89 86 72 20 25 10 34 21 Engine 8 | . 14 10 . 11 9 11 9 8 9 6 8 . . . 5 . Core 1 | . . 3 10 . 1 . . . . . . . . . . 3 Treads 15 | . 28 28 22 22 13 . . 17 17 14 . . 1 . . . Wheel 2 | . . . . . 8 22 18 . . . . . . . 1 . Hover 1 | . . . . . . . . . . 3 11 3 2 . 2 . Device 1 | . . . . . . . . 5 . 2 4 2 . . 6 2 Storage 19 | . 27 28 22 22 15 22 18 19 27 23 18 . 2 . 8 1 Processor 4 | . . . . 5 14 . . 8 . . 4 3 4 . . . Hackware 4 | . . . 11 5 . . . . 17 14 6 3 10 4 4 . Protection 5 | . . . 10 10 1 . 15 13 . 4 . . . . . . Energy Gun 1 | . 10 . . . . . . . . . . . . . . . Ballistic Gun 4 | . . 8 . . . . 10 16 16 6 . . . 5 . 1 Ballistic Cannon 10 | . 6 19 21 21 19 22 7 . . 5 1 . . . . . Naked Turns 213 | . . . . . . . . . . . 59 68 . 5 47 34 Heaviest Build 205 | 10 61 67 85 85 176 176 189 205 158 94 85 19 32 3 44 28 Greatest Support 60 | 40 40 40 43 43 43 24 24 44 44 60 34 22 56 3 11 60 Greatest Overweight (x) 13 | . 1 1 1 1 7 7 7 7 3 4 2 3 1 . 13 3 Average Overweight (x) 1 | . . 1 1 1 3 7 7 2 1 1 1 . . . 1 . Largest Inventory Capacity 52 | 6 18 18 20 20 44 44 44 52 40 40 40 4 4 4 8 8 Average Capacity 25 | 6 16 18 18 20 28 44 44 29 39 40 36 4 4 4 6 4 Most Carried 44 | 6 18 18 20 20 44 44 44 44 40 40 36 4 4 4 5 8 Average Carried 24 | 5 15 17 18 19 22 44 43 28 38 38 30 3 3 3 4 3 Final Capacity 44 | 6 18 18 20 20 44 44 44 40 40 40 4 4 4 4 8 4 Final Carried 44 | 5 18 18 20 20 44 44 44 40 40 35 4 4 4 3 5 3 Class Distribution -------------------- 63% | Hauler-Mutant 30% | Mutant 4% | Scavenger-Mutant Dominant Class ---------------- Mutant | -10/Materials Mutant | -10/Mines Mutant | -9/Materials Hauler-Mutant | -9/Mines Hauler-Mutant | -9/Exiles Hauler-Mutant | -8/Mines Hauler-Mutant | -8/Materials Hauler-Mutant | -8/Garrison Hauler-Mutant | -8/Materials Hauler-Mutant | -7/Factory Hauler-Mutant | -6/Factory Mutant | -5/Factory Hacker-Mutant | -5/Upper Caves Mutant | -5/Upper Caves Mutant | -5/Zhirov Mutant | -4/Proximity Caves Resources | -11 -10 -10 -9 -9 -9 -8 -8 -8 -8 -7 -6 -5 -5 -5 -5 -4 ----------- Run | Scr Mat Min Mat Min Exi Min Mat Gar Mat Fac Fac Fac Upp Upp Zhi Pro Matter Collected 6520 | 192 347 357 525 403 839 . 921 630 572 1053 79 142 110 75 115 160 Remotely . | . . . . . . . . . . . . . . . . . Salvage Created 6450 | 72 446 150 524 370 253 . 1257 1029 500 813 30 344 . 126 266 270 Parts 405 | 4 31 12 40 25 70 . 62 69 29 43 3 10 . 1 1 5 Haulers Intercepted 10 | . 2 . 3 . . . 2 . 2 1 . . . . . . Recyclers Shooed 2 | . 1 . . . . . . . . 1 . . . . . . Parts Field Recycled . | . . . . . . . . . . . . . . . . . Retrieved Matter . | . . . . . . . . . . . . . . . . . Parts Self-Destructed 12 | . . . . . . . . . . . . . 8 . 1 3 Prevented . | . . . . . . . . . . . . . . . . . Kills | -11 -10 -10 -9 -9 -9 -8 -8 -8 -8 -7 -6 -5 -5 -5 -5 -4 ------- Run | Scr Mat Min Mat Min Exi Min Mat Gar Mat Fac Fac Fac Upp Upp Zhi Pro Combat Hostiles Destroyed 131 | . 11 7 14 15 3 . 26 24 6 19 . 4 . . . 2 Guns 68 | . 6 2 . . . . 13 24 6 12 . 3 . . . 2 Cannons 60 | . 2 5 14 15 3 . 13 . . 7 . 1 . . . . AOE 3 | . 3 . . . . . . . . . . . . . . . Classes Destroyed 15 | 2 4 2 2 . 1 . 1 . 1 2 . . . . . . Worker 4 | . . 1 . . . . 1 . . . . 2 . . . . Builder 2 | . . . . . . . . . . 1 . 1 . . . . Tunneler 8 | 1 . . 1 1 . . 1 . . 1 1 2 . . . . Hauler 10 | . 2 . 3 . . . 2 . 2 1 . . . . . . Recycler 2 | 1 . . . . . . 1 . . . . . . . . . Operator 4 | . . . 1 . . . 2 . . 1 . . . . . . Watcher 6 | . 2 . 1 . . . 1 . 2 . . . . . . . Swarmer 32 | . 6 3 5 1 . . 4 10 . 1 . . . . . 2 Grunt 63 | . 5 2 7 12 . . 18 8 1 7 . 3 . . . . Brawler 2 | . . . . . . . . . 1 1 . . . . . . Sentry 18 | . . . 2 2 . . 3 6 2 3 . . . . . . Hunter 6 | . . . . . . . 1 . 2 3 . . . . . . Programmer 5 | . . . . . . . . . . 4 . 1 . . . . Zionite 8 | . . . . . 8 . . . . . . . . . . . Packrat 2 | . . . . . . . . . . . . . . 2 . . Assembled 4 | . . 2 . . 2 . . . . . . . . . . . Thug 1 | . . . 1 . . . . . . . . . . . . . Best Kill Streak 8 | 2 3 3 4 3 2 . 7 8 3 5 1 4 . . . 1 Combat Bots Only 8 | . 3 3 4 3 1 . 5 8 3 3 . 4 . . . 1 Max Kills in Single Turn 3 | 1 3 1 2 1 1 . 2 2 2 1 1 1 . 1 . 1 Gunslinging 1 | . 1 . . . . . . 1 . . . . . . . . Exploded 3 | . 3 . . . . . . . . . . . . . . . Melee . | . . . . . . . . . . . . . . . . . Uniques/NPCs Destroyed 4 | . . . . . 4 . . . . . . . . . . . 8R-AWN (-9/Exiles) EX-HEX (-9/Exiles) EX-DEC (-9/Exiles) EX-BIN (-9/Exiles) Combat | -11 -10 -10 -9 -9 -9 -8 -8 -8 -8 -7 -6 -5 -5 -5 -5 -4 -------- Run | Scr Mat Min Mat Min Exi Min Mat Gar Mat Fac Fac Fac Upp Upp Zhi Pro Damage Taken 12312 | 6 408 178 275 571 1013 17 2190 884 770 2609 797 927 417 97 . 1153 Core 2740 | . 52 49 35 55 225 7 152 80 75 499 517 361 207 24 . 402 Absorbed by Shields 125 | . . . . . . . . 100 . . 25 . . . . . Core Remaining (%) 48 | 100 . 59 . . . 19 . . 44 28 39 . . . . . Volleys Fired 614 | 7 37 17 48 43 102 . 111 70 43 91 6 9 . 20 . 10 Largest 2 | 2 2 2 2 2 2 . 2 2 2 2 1 2 . 1 . 1 Hottest 139 | 80 100 83 139 100 96 . 96 90 48 76 30 93 . 23 . 23 Shots Fired 1081 | 14 68 34 93 84 158 . 210 130 79 159 6 16 . 20 . 10 Gun 531 | 14 50 12 . . . . 124 130 79 83 . 9 . 20 . 10 Cannon 491 | . 16 22 89 82 119 . 83 . . 73 . 7 . . . . Launcher . | . . . . . . . . . . . . . . . . . Special 59 | . 2 . 4 2 39 . 3 . . 3 6 . . . . . Kinetic 938 | . 8 34 89 82 119 . 207 125 79 156 . 9 . 20 . 10 Thermal 101 | 7 34 . 4 2 39 . 3 5 . . . 7 . . . . Explosive . | . . . . . . . . . . . . . . . . . Electromagnetic 33 | 7 26 . . . . . . . . . . . . . . . Robot Hit Streak 24 | 6 10 8 9 24 15 . 19 16 20 21 2 7 . 8 . 4 Robot Miss Streak 6 | 1 6 4 4 3 3 . 5 5 2 5 3 4 . 2 . 3 Penetration Max 2 | . . . . . . . 2 . . 1 . 1 . . . . Secondary Targets 11 | . 1 . . . . . 2 5 3 . . . . . . . Max Gunslinging Chain 1 | . 1 . . . . . 1 1 1 . . . . . . . Shots Hit Robots 770 | 10 35 19 52 60 105 . 138 78 61 133 2 18 . 13 20 26 Core Hits 323 | 3 19 10 22 19 29 . 60 36 23 64 5 7 . 6 11 9 Critical Hits 33 | . . . 1 1 10 . 18 1 . 1 . . . . . 1 Critical Kills 10 | . . . 1 1 . . 7 . . . . . . . . 1 Critical Parts Destroyed 19 | . . . . . 6 . 11 1 . 1 . . . . . . Melee Attacks 78 | . . . . . . . . 2 9 9 3 12 . . 20 23 Impact 20 | . . . . . . . . . . 6 2 12 . . . . Slashing 44 | . . . . . . . . . . . 1 . . . 20 23 Piercing 14 | . . . . . . . . 2 9 3 . . . . . . Sneak Attacks 7 | . . . . . . . . . . 1 . 5 . . . 1 Combat Hostiles 1 | . . . . . . . . . . . . . . . . 1 Follow-up Attacks . | . . . . . . . . . . . . . . . . . Damage Inflicted 15210 | 132 763 325 1104 1395 1870 . 2920 1391 903 2745 46 823 . 185 283 325 Guns 6309 | 110 381 117 . . . . 1514 1391 903 1402 . 197 . 185 . 109 Cannons 7003 | . 87 208 1104 1395 1548 . 1278 . . 1214 . 169 . . . . Explosions 317 | 22 295 . . . . . . . . . . . . . . . Melee 1078 | . . . . . . . . . . 122 . 457 . . 283 216 Ramming 142 | . . . . . . . 89 . . 7 46 . . . . . Kinetic 12536 | . 18 325 1104 1395 1548 . 2792 1344 903 2616 . 197 . 185 . 109 Thermal 1008 | 66 365 . . . 322 . 39 47 . . . 169 . . . . Explosive 142 | . 142 . . . . . . . . . . . . . . . Electromagnetic 304 | 66 238 . . . . . . . . . . . . . . . Impact 579 | . . . . . . . . . . 122 . 457 . . . . Slashing 499 | . . . . . . . . . . . . . . . 283 216 Piercing . | . . . . . . . . . . . . . . . . . Highest Corruption 4 | . . . . . 4 4 2 2 . 4 . 2 2 2 2 2 Average Corruption 2 | . . . . . 3 4 2 1 . 2 . 1 2 2 2 2 Corruption Purged 3 | . . . . . . . . 2 . 1 . . . . . . Effects 39 | . . . . . 18 1 . 1 . 1 . . 5 5 3 5 Message Errors 5 | . . . . . 3 . . 1 . . . . . 1 . . Matter Fused 6 | . . . . . 5 . . . . 1 . . . . . . Heat Flow Errors 12 | . . . . . 3 1 . . . . . . 3 2 2 1 Energy Discharges 7 | . . . . . 4 . . . . . . . 1 1 . 1 Data Loss (minor) 6 | . . . . . 2 . . . . . . . 1 1 . 2 Targeting Errors 3 | . . . . . 1 . . . . . . . . . 1 1 Overload Shots . | . . . . . . . . . . . . . . . . . Overflow Damage 596 | . 4 . 18 20 49 . 42 . . 156 . 285 . . 11 11 Projectiles 138 | . . . 18 20 49 . 7 . . 44 . . . . . . Explosions 4 | . 4 . . . . . . . . . . . . . . . Melee 454 | . . . . . . . 35 . . 112 . 285 . . 11 11 Knockbacks 74 | . . 2 8 15 13 . 13 . . 18 . 5 . . . . Impact 6 | . . . . . . . . . . 1 . 5 . . . . Kinetic 65 | . . 2 8 13 13 . 12 . . 17 . . . . . . Secondary 3 | . . . . 2 . . 1 . . . . . . . . . Self-Inflicted Damage 180 | 7 107 . . . . . 44 . . . 22 . . . . . Shots 5 | 1 4 . . . . . . . . . . . . . . . Rammed 11 | . . . . . . . 4 . . 1 6 . . . . . Targets Rammed 11 | . . . . . . . 4 . . 1 6 . . . . . Kicked . | . . . . . . . . . . . . . . . . . Crushed . | . . . . . . . . . . . . . . . . . Highest Temperature 259 | 120 198 190 186 122 215 161 231 176 6 119 25 3 259 195 254 209 Average Temperature 56 | 67 54 75 47 39 80 86 69 30 3 24 13 3 133 88 122 125 Received Heat Transfer 3289 | . 117 88 93 249 . . 954 285 225 744 87 297 111 . . 39 Effects 3 | . . . . . . . 3 . . . . . . . . . Energy Bleed 1 | . . . . . . . 1 . . . . . . . . . Interference 2 | . . . . . . . 2 . . . . . . . . . Siege Activations . | . . . . . . . . . . . . . . . . . Robots Corrupted . | . . . . . . . . . . . . . . . . . Combat Hostiles . | . . . . . . . . . . . . . . . . . Parts Fried 9 | . . . . . 1 . . . . . . 8 . . . . Impact Corruptions 18 | . . . . . . . 2 . . 5 . 11 . . . . Robots Melted . | . . . . . . . . . . . . . . . . . Combat Hostiles . | . . . . . . . . . . . . . . . . . Parts Melted 8 | . 2 . . . 5 . . 1 . . . . . . . . Heat Transferred 2340 | 150 673 . . . 1073 . 111 111 . . . 222 . . . . Parts Sabotaged . | . . . . . . . . . . . . . . . . . Parts Stolen 5 | . . . . . . . . . . . . . . 5 . . Parts Stripped . | . . . . . . . . . . . . . . . . . Power Chain Reactions 3 | 1 2 . . . . . . . . . . . . . . . Missiles Intercepted . | . . . . . . . . . . . . . . . . . Alert | -11 -10 -10 -9 -9 -9 -8 -8 -8 -8 -7 -6 -5 -5 -5 -5 -4 ------- Run | Scr Mat Min Mat Min Exi Min Mat Gar Mat Fac Fac Fac Upp Upp Zhi Pro Peak Influence 1431 | 10 257 98 225 190 . . 701 1431 884 454 161 293 . . . . Initial 697 | . 6 28 . 57 . . . 455 697 343 148 11 . . . . Average 345 | 5 122 39 68 92 . . 289 1124 754 290 99 150 . . . . Maximum Alert Level 4 | . 1 . 1 . . . 3 4 3 2 . 1 . . . . Low Security (%) 55 | 100 86 100 93 100 . 100 32 . . 12 100 78 . . . . Level 1 19 | . 13 . 6 . . . 41 . . 80 . 21 . . . . Level 2 5 | . . . . . . . 24 9 26 6 . . . . . . Level 3 6 | . . . . . . . . 18 73 . . . . . . . Level 4 12 | . . . . . . . . 72 . . . . . . . . Level 5 . | . . . . . . . . . . . . . . . . . High Security . | . . . . . . . . . . . . . . . . . Max Security . | . . . . . . . . . . . . . . . . . Squads Dispatched 28 | . 2 1 2 . . . 5 . 4 7 3 4 . . . . Investigation 7 | . 1 1 . . . . . . 2 2 1 . . . . . Extermination 4 | . . . . . . . . . . 4 . . . . . . Reinforcement 14 | . 1 . 2 . . . 5 . 2 1 2 1 . . . . Assault . | . . . . . . . . . . . . . . . . . Garrison 3 | . . . . . . . . . . . . 3 . . . . Intercept . | . . . . . . . . . . . . . . . . . Construction Impeded 1 | . . . . . . . 1 . . . . . . . . . Haulers Reinforced . | . . . . . . . . . . . . . . . . . Stealth | -11 -10 -10 -9 -9 -9 -8 -8 -8 -8 -7 -6 -5 -5 -5 -5 -4 --------- Run | Scr Mat Min Mat Min Exi Min Mat Gar Mat Fac Fac Fac Upp Upp Zhi Pro Distress Signals 13 | . . . 4 . . . 6 . 1 . 1 1 . . . . Communications Jammed . | . . . . . . . . . . . . . . . . . Distress Signals . | . . . . . . . . . . . . . . . . . Times Spotted 324 | . 22 7 31 25 47 3 50 26 19 26 14 17 12 10 . 15 Peak Tracking Total 9 | . 4 3 4 4 9 4 9 5 6 7 9 5 7 9 . 6 Tactical Retreats 47 | . 1 . 2 9 13 . 6 2 . 1 . 6 3 1 . 3 Traps | -11 -10 -10 -9 -9 -9 -8 -8 -8 -8 -7 -6 -5 -5 -5 -5 -4 ------- Run | Scr Mat Min Mat Min Exi Min Mat Gar Mat Fac Fac Fac Upp Upp Zhi Pro Traps Triggered 13 | . 1 . 1 . . . . 8 . 2 1 . . . . . Indirectly . | . . . . . . . . . . . . . . . . . Trap Hack Attempts . | . . . . . . . . . . . . . . . . . Triggered . | . . . . . . . . . . . . . . . . . Disarmed . | . . . . . . . . . . . . . . . . . Reprogrammed . | . . . . . . . . . . . . . . . . . Reused . | . . . . . . . . . . . . . . . . . Traps Extracted . | . . . . . . . . . . . . . . . . . Installed . | . . . . . . . . . . . . . . . . . Triggered . | . . . . . . . . . . . . . . . . . Exploded 3 | . . . . . 3 . . . . . . . . . . . Machines | -11 -10 -10 -9 -9 -9 -8 -8 -8 -8 -7 -6 -5 -5 -5 -5 -4 ---------- Run | Scr Mat Min Mat Min Exi Min Mat Gar Mat Fac Fac Fac Upp Upp Zhi Pro Machines Disabled 22 | . 3 . 1 . 8 . 2 4 . 4 . . . . . . Max in Single Turn 2 | . 2 . 1 . 2 . 1 1 . 1 . . . . . . Garrison Access 1 | . . . . . . . . . . . 1 . . . . . Garrison Relay 4 | . . . . . . . . 4 . . . . . . . . Machines Sabotaged . | . . . . . . . . . . . . . . . . . Garrisons Compromised . | . . . . . . . . . . . . . . . . . Overloaded Fab Kills . | . . . . . . . . . . . . . . . . . Fab Network Shutdowns . | . . . . . . . . . . . . . . . . . Hacking | -11 -10 -10 -9 -9 -9 -8 -8 -8 -8 -7 -6 -5 -5 -5 -5 -4 --------- Run | Scr Mat Min Mat Min Exi Min Mat Gar Mat Fac Fac Fac Upp Upp Zhi Pro Machines Accessed 44 | . 9 3 6 . 5 . 4 . 3 4 3 2 . . 5 . Terminals 26 | . 7 1 5 . . . 2 . 3 4 2 2 . . . . Fabricators . | . . . . . . . . . . . . . . . . . Repair Stations 2 | . 1 . . . . . 1 . . . . . . . . . Recycling Units 1 | . 1 . . . . . . . . . . . . . . . Scanalyzers 1 | . . . 1 . . . . . . . . . . . . . Garrison Access 2 | . . . . . . . 1 . . . 1 . . . . . Total Hacks 169 | . 35 5 20 . 50 . 7 . 12 11 7 4 . . 18 . Successful 130 | . 22 4 18 . 50 . 5 . 6 3 1 3 . . 18 . Failed 37 | . 12 1 1 . . . 2 . 6 8 6 1 . . . . Catastrophic 10 | . 2 . . . . . . . 3 2 2 1 . . . . Database Lockouts 2 | . 1 . 1 . . . . . . . . . . . . . Manual 82 | . 30 3 14 . 1 . 4 . 12 11 3 4 . . . . Terminals 86 | . 29 3 17 . . . 4 . 12 11 6 4 . . . . Fabricators . | . . . . . . . . . . . . . . . . . Repair Stations 4 | . 2 . . . . . 2 . . . . . . . . . Recycling Units 4 | . 4 . . . . . . . . . . . . . . . Scanalyzers 3 | . . . 3 . . . . . . . . . . . . . Garrison Access 2 | . . . . . . . 1 . . . 1 . . . . . Terminal Hacks 95 | . 9 4 9 . 50 . . . 3 1 . 1 . . 18 . Record 56 | . . . 1 . 49 . . . . . . . . . 6 . Part Schematic 10 | . 3 . 2 . . . . . 1 . . . . . 4 . Robot Analysis 10 | . 2 2 2 . . . . . . . . . . . 4 . Prototype ID Bank 5 | . . . 1 . . . . . . . . . . . 4 . Open Door 2 | . . 2 . . . . . . . . . . . . . . Branch Access Points 1 | . 1 . . . . . . . . . . . . . . . Terminal Index 3 | . 1 . . . . . . . . 1 . 1 . . . . Locate Traps 1 | . 1 . . . . . . . . . . . . . . . Recall Investigation 2 | . . . . . . . . . 2 . . . . . . . Zone Layout 4 | . 1 . 3 . . . . . . . . . . . . . EX-Prototype ID Bank 1 | . . . . . 1 . . . . . . . . . . . Fabricator Hacks . | . . . . . . . . . . . . . . . . . Repair Station Hacks 4 | . 2 . . . . . 2 . . . . . . . . . Scan Component 2 | . 1 . . . . . 1 . . . . . . . . . Repair 2 | . 1 . . . . . 1 . . . . . . . . . Recycling Unit Hacks 2 | . 2 . . . . . . . . . . . . . . . Report Inventory 1 | . 1 . . . . . . . . . . . . . . . Retrieve Components 1 | . 1 . . . . . . . . . . . . . . . Scanalyzer 3 | . . . 3 . . . . . . . . . . . . . Insert Component 2 | . . . 2 . . . . . . . . . . . . . Analyze 1 | . . . 1 . . . . . . . . . . . . . Garrison Access Hacks 2 | . . . . . . . 1 . . . 1 . . . . . Unlock Access 1 | . . . . . . . 1 . . . . . . . . . Seal Access 1 | . . . . . . . . . . . 1 . . . . . Unauthorized Hacks 24 | . 9 . 6 . . . 2 . 3 2 . 2 . . . . Terminals 23 | . 8 . 6 . . . 2 . 3 2 . 2 . . . . Track 3 | . 1 . 1 . . . . . 1 . . . . . . . Assimilate 3 | . 3 . . . . . . . . . . . . . . . Botnet 15 | . 3 . 4 . . . 2 . 2 2 . 2 . . . . Operators 2 | . 1 . 1 . . . . . . . . . . . . . Fabricators . | . . . . . . . . . . . . . . . . . Repair Stations . | . . . . . . . . . . . . . . . . . Recycling Units 1 | . 1 . . . . . . . . . . . . . . . Tunnel 1 | . 1 . . . . . . . . . . . . . . . Scanalyzers . | . . . . . . . . . . . . . . . . . Garrison Access . | . . . . . . . . . . . . . . . . . Data Cores Recovered . | . . . . . . . . . . . . . . . . . Used . | . . . . . . . . . . . . . . . . . Hacking Detections 28 | . 8 1 6 . . . 2 . 3 4 2 2 . . . . Full Trace Events 5 | . . . . . . . . . 2 2 1 . . . . . Feedback Events . | . . . . . . . . . . . . . . . . . Feedback Blocked . | . . . . . . . . . . . . . . . . . Robot Schematics Acquired . | . . . . . . . . . . . . . . . . . Robots Built . | . . . . . . . . . . . . . . . . . Matter . | . . . . . . . . . . . . . . . . . Time . | . . . . . . . . . . . . . . . . . Total Robot Build Rating . | . . . . . . . . . . . . . . . . . Part Schematics Acquired 11 | . 3 . 3 . . . . . 1 . . . . . 4 . Parts Built . | . . . . . . . . . . . . . . . . . Matter . | . . . . . . . . . . . . . . . . . Time . | . . . . . . . . . . . . . . . . . Total Part Build Rating . | . . . . . . . . . . . . . . . . . Parts Repaired 2 | . 1 . . . . . 1 . . . . . . . . . Time 58 | . 26 . . . . . 32 . . . . . . . . . Parts Recycled . | . . . . . . . . . . . . . . . . . Recycled Matter . | . . . . . . . . . . . . . . . . . Retrieved Matter . | . . . . . . . . . . . . . . . . . Retrieved Components 9 | . 9 . . . . . . . . . . . . . . . Parts Scanalyzed 1 | . . . 1 . . . . . . . . . . . . . Part Schematics Acquired 1 | . . . 1 . . . . . . . . . . . . . Parts Damaged . | . . . . . . . . . . . . . . . . . Bothacking | -11 -10 -10 -9 -9 -9 -8 -8 -8 -8 -7 -6 -5 -5 -5 -5 -4 ------------ Run | Scr Mat Min Mat Min Exi Min Mat Gar Mat Fac Fac Fac Upp Upp Zhi Pro Used RIF Installer 1 | . . . . . . . . 1 . . . . . . . . Robots Hacked 3 | . . . . . . . . . . 1 2 . . . . . Non-combat . | . . . . . . . . . . . . . . . . . Combat 3 | . . . . . . . . . . 1 2 . . . . . Robot Hacks Applied 3 | . . . . . . . . . . 1 2 . . . . . formatsys_high 3 | . . . . . . . . . . 1 2 . . . . . Relay Couplers Released 17 | . . . . . . . . 17 . . . . . . . . Machine Destruction 17 | . . . . . . . . 17 . . . . . . . . Attached 2 | . . . . . . . . . . 1 1 . . . . . Robots Rewired . | . . . . . . . . . . . . . . . . . Allies Hacked 1 | . . . . . . . . . . . . 1 . . . . Hacks Repelled . | . . . . . . . . . . . . . . . . . Allies | -11 -10 -10 -9 -9 -9 -8 -8 -8 -8 -7 -6 -5 -5 -5 -5 -4 -------- Run | Scr Mat Min Mat Min Exi Min Mat Gar Mat Fac Fac Fac Upp Upp Zhi Pro Total Allies 8 | . 2 . . 3 . . . . . 1 2 . . . . . Largest Group 3 | . 2 2 1 3 3 . . . . 1 2 1 . . . . Highest-Rated Group 40 | . 20 20 10 40 40 . . . . 16 22 12 . . . . Highest-Rated Ally 16 | . 10 10 10 16 16 . . . . 16 12 12 . . . . Total Orders 33 | . 2 13 8 2 7 . . . . . 1 . . . . . STAY 18 | . 1 6 4 1 5 . . . . . 1 . . . . . FOLLOW 13 | . 1 7 2 1 2 . . . . . . . . . . . EXPLORE 1 | . . . 1 . . . . . . . . . . . . . RETURN 1 | . . . 1 . . . . . . . . . . . . . Ally Attacks 48 | . . . 5 . 16 . . . . 10 8 4 5 . . . Total Damage 745 | . . . 15 . 187 . . . . 141 103 74 225 . . . Kills 7 | . . . . . 1 . . . . 1 1 . 4 . . . Allies Corrupted . | . . . . . . . . . . . . . . . . . Allies Melted . | . . . . . . . . . . . . . . . . . Turrets Deployed 1 | . . . . . . . . . . . . . 1 . . . Intel | -11 -10 -10 -9 -9 -9 -8 -8 -8 -8 -7 -6 -5 -5 -5 -5 -4 ------- Run | Scr Mat Min Mat Min Exi Min Mat Gar Mat Fac Fac Fac Upp Upp Zhi Pro Robot Analysis Total 10 | . 2 2 2 . . . . . . . . . . . 4 . Derelict Logs Recovered 2 | . . 1 . 1 . . . . . . . . . . . . Drone Launches 1 | . . . 1 . . . . . . . . . . . . . Drone Recoveries . | . . . . . . . . . . . . . . . . . Exploration | -11 -10 -10 -9 -9 -9 -8 -8 -8 -8 -7 -6 -5 -5 -5 -5 -4 ------------- Run | Scr Mat Min Mat Min Exi Min Mat Gar Mat Fac Fac Fac Upp Upp Zhi Pro Turns Passed 17635 | 34 1694 1396 1295 1814 2898 61 1154 2366 582 2129 641 461 336 175 249 350 Spaces Moved 8969 | 7 839 731 567 770 1415 39 445 1094 206 914 349 529 371 260 168 265 Core 894 | . . . . . . . . . . . 84 165 108 260 113 164 Treads 5687 | 3 839 731 567 770 821 . . 1040 206 690 . . 20 . . . Legs 168 | 4 . . . . . . . . . . . . 63 . . 101 Wheels 1186 | . . . . . 594 39 445 54 . . . . . . 54 . Hover 1034 | . . . . . . . . . . 224 265 364 180 . 1 . Flight . | . . . . . . . . . . . . . . . . . Fastest Speed 50 | 120 160 180 180 180 120 160 160 120 165 180 50 50 50 50 50 50 Average Speed 159 | 137 178 180 180 180 172 160 160 186 184 188 160 71 82 50 102 80 Slowest Speed 700 | 160 180 180 180 180 200 160 160 225 205 240 196 200 180 50 700 200 Overloaded Moves . | . . . . . . . . . . . . . . . . . Propulsion Burnouts . | . . . . . . . . . . . . . . . . . Robots Hopped . | . . . . . . . . . . . . . . . . . Cave-ins Triggered . | . . . . . . . . . . . . . . . . . Teleports 1 | . . . . . . . . . . . . . . . . 1 Exploration Rate (%) 49 | 3 97 99 51 97 92 14 33 80 23 19 8 16 63 44 60 38 Regions Visited 16 Branch Regions 8 Pre-discovered Areas 5 | . 1 . . . 1 . . . . . . . . . 3 . Known Exits Taken 3 | . 1 . . . . . 1 . . . 1 . . . . . Unknown Exits Taken 12 | 1 . 1 1 1 1 1 . . 1 1 . 1 1 1 1 . Scrap Searched 4 | . . 1 . 2 . . . . . . . . 1 . . . Spaces Dug 24 | . 2 . 4 . . . . 1 5 4 1 7 . . . . Terrain Destroyed 106 | . 43 4 9 3 11 . 13 1 5 9 1 7 . . . . Melee 18 | . . . . . . . . 1 5 4 1 7 . . . . Projectile 47 | . 2 4 9 3 11 . 13 . . 5 . . . . . . AOE 41 | . 41 . . . . . . . . . . . . . . . Terrain Rammed . | . . . . . . . . . . . . . . . . . Walls Destroyed . | . . . . . . . . . . . . . . . . . Machines Disabled . | . . . . . . . . . . . . . . . . . Actions | -11 -10 -10 -9 -9 -9 -8 -8 -8 -8 -7 -6 -5 -5 -5 -5 -4 --------- Run | Scr Mat Min Mat Min Exi Min Mat Gar Mat Fac Fac Fac Upp Upp Zhi Pro Total 11119 | 18 969 779 743 1110 1692 38 696 1369 338 1140 419 570 399 284 203 352 Wait 798 | . 31 14 89 283 52 . 96 61 26 75 30 6 10 1 2 22 Move 8954 | 6 838 730 566 769 1414 38 445 1093 205 913 348 528 370 259 167 265 Hop . | . . . . . . . . . . . . . . . . . Pick Up 219 | 1 27 5 12 3 67 . 13 42 28 7 1 4 . 2 2 5 Fast Attach 64 | . 5 2 1 1 4 . 3 10 6 6 3 5 11 . 4 3 Attach 82 | 2 5 2 4 3 5 . 9 9 4 11 5 3 . 2 6 12 Detach 28 | . 1 . . 2 6 . 2 6 1 2 4 1 1 . . 2 Swap 73 | . 6 2 11 4 13 . 4 8 6 17 1 . . . 1 . Drop 176 | 2 19 7 12 2 29 . 9 57 10 8 1 2 7 . 1 10 Fire 614 | 7 37 17 48 43 102 . 111 70 43 91 6 9 . 20 . 10 Melee 78 | . . . . . . . . 2 9 9 3 12 . . 20 23 Ram 10 | . . . . . . . 4 . . . 6 . . . . . Kick . | . . . . . . . . . . . . . . . . . Crush 1 | . . . . . . . . . . 1 . . . . . . Escape Stasis 22 | . . . . . . . . 11 . . 11 . . . . . Rewire . | . . . . . . . . . . . . . . . . . Trap . | . . . . . . . . . . . . . . . . . Miscellaneous . | . . . . . . . . . . . . . . . . . Route ------- -11/Scrapyard -10/Materials (discovered 5 exits: *Mat x3 / *Min x2) -10/Mines (discovered 2 exits: *Mat x2) -9/Materials (discovered 2 exits: *Mat / [*Min]) -9/Mines (discovered 4 exits: *Mat x2 / *Exi / *Zio) -9/Exiles (discovered 2 exits: [*Min x2]) -8/Mines -8/Materials -8/Garrison (discovered 2 exits: *Mat x2) -8/Materials -7/Factory (discovered 2 exits: *Fac x2) -6/Factory -5/Factory (discovered 2 exits: [*Fac] / [*Upp]) -5/Upper Caves -5/Upper Caves -5/Zhirov -4/Proximity Caves History --------- Turn | Location | Event 19 | -11/Scrapyard | Discovered new exit (range 3) 35 | -11/Scrapyard | Entered Materials 314 | -10/Materials | Build established: Mutant 332 | -10/Materials | Discovered new exit (range 3) 543 | -10/Materials | Discovered new exit (range 16) 599 | -10/Materials | Repaired Sensor Array? 684 | -10/Materials | Discovered new exit (range 15) 933 | -10/Materials | Discovered new exit (range 8) 1150 | -10/Materials | Identified exit to Mines 1253 | -10/Materials | Discovered new exit (range 10) 1662 | -10/Materials | Central database locked down 1729 | -10/Materials | Entered Mines 1729 | -10/Mines | Accompanied by 2 allies 1738 | -10/Mines | Met a Derelict bent on vengeance 1767 | -10/Mines | A weapon hastily lodged in a ceiling crevice suddenly fell to the ground 1903 | -10/Mines | Found the Drone Emporium 1914 | -10/Mines | Found Prototype Device 2484 | -10/Mines | Assembled infested the area 2489 | -10/Mines | Assisted by a Guerilla fighting off Assembled 2577 | -10/Mines | Met a Derelict shopkeep closing up shop 2927 | -10/Mines | Discovered new exit (range 12) 2933 | -10/Mines | Learned 2 Materials zone layouts 3026 | -10/Mines | Discovered new exit (range 8) 3125 | -10/Mines | Entered Materials 3125 | -9/Materials | Accompanied by 1 ally 3125 | -9/Materials | Evolved 2 slots: Utility x2 3125 | -9/Materials | Identified Thief Drone Bay 3151 | -9/Materials | Discovered new exit (range 54) 3553 | -9/Materials | Central database locked down 4110 | -9/Materials | Discovered new exit (range 16) 4280 | -9/Materials | Build established: Hauler-Mutant 4420 | -9/Materials | Entered Mines 4451 | -9/Mines | Deemed a non-threat by the Exiles lab entrance 4451 | -9/Mines | Discovered new exit (range 5) 4763 | -9/Mines | Excavation squad dispatched 4763 | -9/Mines | A large section of the Mines collapsed 5013 | -9/Mines | Excavation squad dispatched 5336 | -9/Mines | Discovered new exit (range 9) 5382 | -9/Mines | Learned 2 Materials zone layouts 5396 | -9/Mines | A Derelict revealed a hidden shortcut to a safe place 5405 | -9/Mines | Identified exit to Zion 5832 | -9/Mines | Discovered new exit (range 8) 5875 | -9/Mines | Assisted by bots powering up and referring to "LRC-V3" 6234 | -9/Mines | Entered Exiles 6234 | -9/Exiles | Accompanied by 3 allies 6261 | -9/Exiles | Discovered new exit (range 15) 6283 | -9/Exiles | Met 8R-AWN 6306 | -9/Exiles | Met EX-HEX 6648 | -9/Exiles | Met EX-DEC 6699 | -9/Exiles | Visited The Gauntlet 6928 | -9/Exiles | Learned location of Zion (-7) 7063 | -9/Exiles | Discovered new exit (range 11) 7265 | -9/Exiles | Met EX-BIN 7289 | -9/Exiles | Aligned with FarCom system 7291 | -9/Exiles | Given EX-Vault access code 7379 | -9/Exiles | Opened EX-Vault 7389 | -9/Exiles | Found Lightpack 2.0 7394 | -9/Exiles | Found Supersonic Drone Bay 7397 | -9/Exiles | Found Modified TNC 7444 | -9/Exiles | Warned to stay clear of 0b10 Research branches 7860 | -9/Exiles | Attacked by the Exiles 7988 | -9/Exiles | Core integrity fell below 50% 8015 | -9/Exiles | Destroyed 8R-AWN 8366 | -9/Exiles | Destroyed EX-HEX 8399 | -9/Exiles | Destroyed EX-DEC 8433 | -9/Exiles | Destroyed EX-BIN 8810 | -9/Exiles | Found Deploy-a-Sentry 8864 | -9/Exiles | Found Prototype Device 9132 | -9/Exiles | Stole four prototypes: Lightpack 2.0, Modified TNC, Supersonic Drone Bay, Deploy-a-Sentry 9132 | -9/Exiles | Entered Mines 9160 | -8/Mines | Discovered new exit (range 13) 9190 | -8/Mines | Core integrity fell below 20% 9193 | -8/Mines | Entered Materials 9193 | -8/Materials | Evolved 2 slots: Utility x2 9797 | -8/Materials | Lost 3 parts (1u2w) 10129 | -8/Materials | Repaired Hrd. Light Armor Plating 10347 | -8/Materials | Identified exit to Garrison 10347 | -8/Materials | Entered Garrison 10405 | -8/Garrison | Identified System Purifier 10563 | -8/Garrison | Triggered checkpoint 10643 | -8/Garrison | Triggered checkpoint 10753 | -8/Garrison | Build established: Scavenger-Mutant 10873 | -8/Garrison | Discovered new exit (range 10) 11010 | -8/Garrison | Destroyed 8 combat bots 11055 | -8/Garrison | Discovered new exit (range 10) 11078 | -8/Garrison | Installed Relay Interface Framework 11228 | -8/Garrison | Garrison Relay disabled 11614 | -8/Garrison | Build established: Hauler-Mutant 11720 | -8/Garrison | Triggered checkpoint 11748 | -8/Garrison | Garrison Relay disabled 11912 | -8/Garrison | Triggered checkpoint 11964 | -8/Garrison | Garrison Relay disabled 12072 | -8/Garrison | Triggered checkpoint 12184 | -8/Garrison | Triggered checkpoint 12267 | -8/Garrison | Garrison Relay disabled 12713 | -8/Garrison | Entered Materials 12943 | -8/Materials | Core integrity fell below 50% 13269 | -8/Materials | Discovered new exit (range 5) 13295 | -8/Materials | Entered Factory 13295 | -7/Factory | Evolved 2 slots: Propulsion x1, Utility x1 13524 | -7/Factory | Discovered new exit (range 9) 14647 | -7/Factory | Lost 3 parts (3n) 14667 | -7/Factory | Discovered new exit (range 13) 14899 | -7/Factory | Core integrity fell below 50% 14967 | -7/Factory | Lost 6 parts (2n3u1w) 15424 | -7/Factory | Entered another Factory area 15424 | -6/Factory | Evolved 2 slots: Power x1, Propulsion x1 15844 | -6/Factory | Discovered new exit (range 9) 15860 | -6/Factory | Identified exit to Factory 16006 | -6/Factory | Released all parts (10) 16037 | -6/Factory | Lost 4 parts (2p1n1w) 16058 | -6/Factory | Core integrity fell below 50% 16065 | -6/Factory | Entered another Factory area 16065 | -5/Factory | Accompanied by 1 ally 16065 | -5/Factory | Evolved 2 slots: Propulsion x2 16080 | -5/Factory | Garrison activated, responded to threat 16214 | -5/Factory | Discovered new exit (range 14) 16299 | -5/Factory | Build established: Mutant 16427 | -5/Factory | Spotted B-75 Beast 16462 | -5/Factory | Discovered new exit (range 15) 16526 | -5/Factory | Entered Upper Caves 16592 | -5/Upper Caves | Ambushed by wild Derelicts 16619 | -5/Upper Caves | Encountered a Warlord checkpoint 16686 | -5/Upper Caves | DAS Turret deployed 16688 | -5/Upper Caves | Core integrity fell below 50% 16829 | -5/Upper Caves | Attracted the attention of an 0b10 base 16857 | -5/Upper Caves | Build established: Hacker-Mutant 16858 | -5/Upper Caves | Discovered new exit (range 10) 16862 | -5/Upper Caves | Entered another Upper Caves area 16891 | -5/Upper Caves | Lost 5 parts (2n3u) 16931 | -5/Upper Caves | Attracted the attention of an 0b10 checkpoint 17013 | -5/Upper Caves | Spotted QF-TR2(f) 17015 | -5/Upper Caves | Encountered a Master Thief 17015 | -5/Upper Caves | Spotted OI-WB7(f) 17015 | -5/Upper Caves | Spotted 02-PX3(f) 17016 | -5/Upper Caves | Encountered a Master Thief 17016 | -5/Upper Caves | Encountered a Master Thief 17016 | -5/Upper Caves | Spotted B1-25W(f) 17019 | -5/Upper Caves | Encountered a Master Thief 17023 | -5/Upper Caves | Discovered new exit (range 16) 17023 | -5/Upper Caves | Imp. Medium Armor Plating stolen by Master Thief 17031 | -5/Upper Caves | Gauss Rifle stolen by Master Thief 17032 | -5/Upper Caves | Hvy. Assault Rifle stolen by Master Thief 17034 | -5/Upper Caves | Lrg. Storage Unit stolen by Master Thief 17037 | -5/Upper Caves | Entered Zhirov 17037 | -5/Zhirov | Discovered new exit (range 3) 17047 | -5/Zhirov | Met Zhirov 17056 | -5/Zhirov | Learned location of Quarantine (-2) 17056 | -5/Zhirov | Learned location of Command (-1) 17061 | -5/Zhirov | Zhirov requested help retrieving the SGEMP Prototype 17071 | -5/Zhirov | Found Alien Artifact 17078 | -5/Zhirov | Found Alien Artifact 17175 | -5/Zhirov | Build established: Mutant 17286 | -5/Zhirov | Entered Proximity Caves 17325 | -4/Proximity Caves | Core integrity fell below 20% 17367 | -4/Proximity Caves | Lost 10 parts (4p2n3u1w) 17574 | -4/Proximity Caves | Identified Transdimensional Reconstructor 17574 | -4/Proximity Caves | Warped through subspace 17599 | -4/Proximity Caves | Spotted B-86 Titan 17634 | -4/Proximity Caves | Lost 6 parts (1p3n1u1w) 17636 | -4/Proximity Caves | Destroyed by S-27 Virus with Autogun Last Messages --------------- 17476_ Acquired 10 matter. 17477_ System corrupted: Heat flow error (+268). 17479_ Sneak attack on G-67 Veteran. 17479_ G-67 Veteran Flexi-carbon Leg ripped off. 17482_ Sneak attack on G-67 Veteran. 17482_ System corrupted: Master Tearclaws targeting data glitched. 17485_ Sneak attack on G-67 Veteran. 17485_ G-67 Veteran destroyed. 17489_ Acquired Flexi-carbon Leg. 17491_ Acquired 10 matter. 17571_ System corrupted: Component data lost. 17574_ Identified Transdimensional Reconstructor. 17574_ Warped through subspace. 17600_ Master Tearclaws destroyed. 17600_ Adv. Cooling System destroyed. 17600_ Flexi-carbon Leg destroyed. 17603_ Neutrino Core destroyed. 17603_ Penetrated by Slug. 17615_ System corrupted: Component data lost. 17630_ Slug penetrates Wall. Map ----- +----------------------------------------------------+ | ?# #?????????????????????????????????????? | | # ## ####??????????????????????????????????? | | # ### ##?????????????????????????????????? | | # ##?# #?????????????????????????????????? | | ##?## # ##????????????????????????????????? | | ##?# ##???????????????????????????????? | | #?# # ##??????????????????????????????? | | # ## # ##?????????????????????????????? | | ### #### # #?????????????????????????????? | | ## #??### #?????????????????????????????? | | ##???### ##?????????????????????????????? | | ####?# ##??????????????????????????????? | | " ### #???????????????????????????????? | | "" #?# ## #???????????????????????????????? | | " ### #?# #???????????????????????????????? | | ## ### #???????#???????????????????????? | | ## #????### ???????????????????????? | | ## #???? ???????????????????????? | | # ## ## #???? #???????????????????????? | | # #### ## #????? ##??????????????????????? | | ####??#" ## ###### ##??????#??????????????? | | ?#####"""# "" ## ###### ##?????????????? | | ?# "# ## #?????????????? | | ?# ### ## #?????????? | | ?# ## #?????????? | | ?# ## ## s@ #?????????? | | ?# ##### ## ss #??????????? | | ?# ##?# s ## #?????????? | | ??#### ##?# s #???????????????? | | ?????# #??## ????????????? | | ???? ???## ## #???????????? | | ??? ????##### #? #???????????? | | ?? ????????#######?? ##???????????? | | ?? #######?????????????????? ##????????????? | | ??# ?????????????????????????? ##?????????????? | | ???? ????????????????????????????#??????????????? | | ?????????????????????????????????????????????????? | | ?????????????????????????????????????????????????? | | ?????????????????????????????????????????????????? | | ?????????????????????????????????????????????????? | | ?????????????????????????????????????????????????? | | ?????????????????????????????????????????????????? | | ?????????????????????????????????????????????????? | | ?????????????????????????????????????????????????? | | ?????????????????????????????????????????????????? | | ?????????????????????????????????????????????????? | | ?????????????????????????????????????????????????? | | ?????????????????????????????????????????????????? | | ?????????????????????????????????????????????????? | | ?????????????????????????????????????????????????? | +----------------------------------------------------+ Best States ------------- Heat Dissipation 71 Energy Generation 33 Energy Capacity 1730 Matter Stores 300 Matter Capacity 300 Sight Range 16 Robot Scan Range 16 Terrain Scan Density 10 Corruption Prevention 12 Armor Coverage 400 Resistance: KI 20 Evasion (%) 50 Targeting Accuracy 6 Recoil Reduction 3 Matter Filtering 50 Salvage Targeting 4 Offensive Hacking 14 Defensive Hacking 14 Relay Coupler Types 36 Relay Coupler Value 1 Item Schematics ----------------- Hcp. Storage Unit | -10/Materials | Hacked Lrg. Storage Unit | -10/Materials | Hacked Hcp. Matter Pod | -10/Materials | Hacked Plasma Cutter | -9/Materials | Hacked Hcp. Battery | -9/Materials | Hacked Bore Cannon | -9/Materials | Scanalyzed Hacking Suite | -8/Materials | Hacked Assault Drone Bay | -5/Zhirov | Free Exp. Heat Sink | -5/Zhirov | Free Exp. Optical Array | -5/Zhirov | Free Imp. Arc Thrower | -5/Zhirov | Free Robot Schematics ------------------ None Fabricated ------------ Nothing Alien Tech Used ----------------- Transdimensional Reconstructor Achievements -------------- Streaker Challenges ------------ None Game ------ Seed SingularityBiocellKatana Manual? 0 Play Time 02:35:58 Cumulative 80.7 hours Start 2020.11.05 @ 19:27:53 End 2020.11.05 @ 22:04:59 Sessions 1 Manual Loads 0 Difficulty Rogue Special Mode Halloween2020/ForbiddenLore Game No. 68 Rogue 68 Adventurer 0 Explorer 0 Win Type - Total 0 Types 0/0/0/0/0/0/0/0/0 Lore% 47 Gallery% 53 Achievement% 51 Wizard Run 0 Options --------- ASCII 0 Keyboard 1 Movement Numpad Keybinds 0 Fullscreen 1 Font 12/Terminus Map View 83x54 Tactical HUD 1 Map Filters NONE Filters NONE Steam 1 RUN: d1903fba-39f4-4e1a-b487-e407b49fa7ec